[Event "Titled Tuesday Blitz April 4 Late 2023"]
[White "Vujcic, Milena"]
[Black "Hartikainen, Jarmo"]
[WhiteFideId "954748"]
[BlackFideId "503134"]
[WhiteElo "1882"]
[BlackElo "2052"]
[Result "1-0"]
[Round "06"]
[TimeControl "180+2"]
[Date "2023.04.04"]
[WhiteClock "0:01:48"]
[BlackClock "0:00:27"]

1. e4 {[%clk 0:03:00]}  c5 {[%clk 0:02:59]} 2. Nf3 {[%clk 0:03:00]}  Nc6 {[%clk 0:02:59]} 3. d4 {[%clk 0:03:00]}  cxd4 {[%clk 0:02:59]} 4. Nxd4 {[%clk 0:03:01]}  Nf6 {[%clk 0:02:59]} 5. Nc3 {[%clk 0:03:00]}  d6 {[%clk 0:03:00]} 6. Bg5 {[%clk 0:02:59]}  e6 {[%clk 0:03:00]} 7. Qd2 {[%clk 0:02:59]}  a6 {[%clk 0:03:00]} 8. O-O-O {[%clk 0:02:59]}  Bd7 {[%clk 0:03:00]} 9. f4 {[%clk 0:02:58]}  h6 {[%clk 0:03:00]} 10. Bh4 {[%clk 0:02:56]}  g5 {[%clk 0:02:59]} 11. fxg5 {[%clk 0:02:52]}  Ng4 {[%clk 0:02:59]} 12. Nxc6 {[%clk 0:02:43]}  Bxc6 {[%clk 0:02:51]} 13. Be2 {[%clk 0:02:38]}  Ne5 {[%clk 0:02:35]} 14. Rhf1 {[%clk 0:02:32]}  hxg5 {[%clk 0:01:27]} 15. Bxg5 {[%clk 0:02:30]}  Qxg5 {[%clk 0:01:26]} 16. Qxg5 {[%clk 0:02:28]}  Bh6 {[%clk 0:01:27]} 17. Qxh6 {[%clk 0:02:25]}  Rxh6 {[%clk 0:01:27]} 18. Rxd6 {[%clk 0:02:14]}  Rxh2 {[%clk 0:01:25]} 19. Bf3 {[%clk 0:02:14]}  Rd8 {[%clk 0:01:19]} 20. Rxd8+ {[%clk 0:02:05]}  Kxd8 {[%clk 0:01:19]} 21. Nd1 {[%clk 0:02:04]}  Bb5 {[%clk 0:00:40]} 22. Rf2 {[%clk 0:01:58]}  Rh1 {[%clk 0:00:33]} 23. Kd2 {[%clk 0:01:55]}  Nc4+ {[%clk 0:00:31]} 24. Kc3 {[%clk 0:01:52]}  Ke7 {[%clk 0:00:27]} 25. a4 {[%clk 0:01:48]} 1-0


[Site "https://www.chess.com"]

[Event "Titled Tuesday Blitz April 4 Late 2023"]
[White "Sargsyan, Shant"]
[Black "Chigaev, Maksim"]
[WhiteFideId "13306766"]
[BlackFideId "4108116"]
[WhiteElo "2628"]
[BlackElo "2547"]
[Result "1-0"]
[Round "07"]
[TimeControl "180+2"]
[Date "2023.04.04"]
[WhiteClock "0:00:42"]
[BlackClock "0:00:13"]

1. Nf3 {[%clk 0:03:00]}  d5 {[%clk 0:02:57]} 2. d4 {[%clk 0:03:00]}  Nf6 {[%clk 0:02:58]} 3. c4 {[%clk 0:03:01]}  e6 {[%clk 0:02:58]} 4. Nc3 {[%clk 0:03:01]}  c6 {[%clk 0:02:59]} 5. Bg5 {[%clk 0:03:01]}  h6 {[%clk 0:02:59]} 6. Bxf6 {[%clk 0:03:02]}  Qxf6 {[%clk 0:03:00]} 7. e3 {[%clk 0:03:02]}  Nd7 {[%clk 0:03:00]} 8. Be2 {[%clk 0:03:03]}  g6 {[%clk 0:02:55]} 9. O-O {[%clk 0:03:03]}  Bg7 {[%clk 0:02:56]} 10. cxd5 {[%clk 0:03:04]}  exd5 {[%clk 0:02:54]} 11. b4 {[%clk 0:03:04]}  O-O {[%clk 0:02:30]} 12. b5 {[%clk 0:03:03]}  Qd6 {[%clk 0:02:31]} 13. Qb3 {[%clk 0:03:00]}  Nb6 {[%clk 0:02:20]} 14. Rfc1 {[%clk 0:02:57]}  Be6 {[%clk 0:02:20]} 15. a4 {[%clk 0:02:52]}  Rab8 {[%clk 0:02:09]} 16. Nd2 {[%clk 0:02:14]}  Rfc8 {[%clk 0:02:02]} 17. a5 {[%clk 0:02:13]}  Nd7 {[%clk 0:02:02]} 18. Nf3 {[%clk 0:02:07]}  c5 {[%clk 0:01:57]} 19. Qa3 {[%clk 0:02:06]}  b6 {[%clk 0:01:56]} 20. axb6 {[%clk 0:02:04]}  axb6 {[%clk 0:01:57]} 21. h3 {[%clk 0:02:03]}  Qf8 {[%clk 0:01:47]} 22. Na4 {[%clk 0:01:53]}  Ra8 {[%clk 0:01:26]} 23. Qb3 {[%clk 0:01:46]}  Qd6 {[%clk 0:01:14]} 24. Nc3 {[%clk 0:01:35]}  cxd4 {[%clk 0:01:02]} 25. Rxa8 {[%clk 0:01:29]}  Rxa8 {[%clk 0:01:02]} 26. Nxd4 {[%clk 0:01:30]}  Nc5 {[%clk 0:00:57]} 27. Qd1 {[%clk 0:01:30]}  Kh7 {[%clk 0:00:56]} 28. Bf3 {[%clk 0:01:26]}  Rd8 {[%clk 0:00:49]} 29. Nce2 {[%clk 0:01:22]}  Be5 {[%clk 0:00:43]} 30. Ra1 {[%clk 0:01:16]}  Rd7 {[%clk 0:00:40]} 31. Ra8 {[%clk 0:01:15]}  Rc7 {[%clk 0:00:40]} 32. Nxe6 {[%clk 0:01:08]}  fxe6 {[%clk 0:00:35]} 33. g3 {[%clk 0:01:08]}  Bg7 {[%clk 0:00:32]} 34. h4 {[%clk 0:01:04]}  Rf7 {[%clk 0:00:17]} 35. Nf4 {[%clk 0:00:56]}  Be5 {[%clk 0:00:18]} 36. h5 {[%clk 0:00:50]}  Bxf4 {[%clk 0:00:18]} 37. hxg6+ {[%clk 0:00:50]}  Kxg6 {[%clk 0:00:18]} 38. Bh5+ {[%clk 0:00:45]}  Kg7 {[%clk 0:00:15]} 39. exf4 {[%clk 0:00:42]}  Re7 {[%clk 0:00:13]} 1-0


[Site "https://www.chess.com"]

[Event "Titled Tuesday Blitz April 4 Late 2023"]
[White "Fedoseev, Vladimir"]
[Black "Li, Ruifeng"]
[WhiteFideId "24130737"]
[BlackFideId "2061074"]
[WhiteElo "2752"]
[BlackElo "2441"]
[Result "1-0"]
[Round "07"]
[TimeControl "180+2"]
[Date "2023.04.04"]
[WhiteClock "0:00:10"]
[BlackClock "0:00:07"]

1. b3 {[%clk 0:02:47]}  b6 {[%clk 0:03:00]} 2. Bb2 {[%clk 0:02:47]}  Bb7 {[%clk 0:03:01]} 3. Nc3 {[%clk 0:02:46]}  Nf6 {[%clk 0:02:57]} 4. d4 {[%clk 0:02:45]}  e6 {[%clk 0:02:58]} 5. a3 {[%clk 0:02:41]}  c5 {[%clk 0:02:56]} 6. e3 {[%clk 0:02:40]}  d6 {[%clk 0:02:48]} 7. Nf3 {[%clk 0:02:37]}  Nbd7 {[%clk 0:02:48]} 8. Bd3 {[%clk 0:02:32]}  a6 {[%clk 0:02:47]} 9. O-O {[%clk 0:02:28]}  Qc7 {[%clk 0:02:46]} 10. a4 {[%clk 0:02:19]}  Be7 {[%clk 0:02:46]} 11. Re1 {[%clk 0:02:18]}  O-O {[%clk 0:02:37]} 12. e4 {[%clk 0:02:16]}  cxd4 {[%clk 0:02:37]} 13. Nxd4 {[%clk 0:02:15]}  Rfe8 {[%clk 0:02:33]} 14. Re3 {[%clk 0:02:12]}  Bf8 {[%clk 0:02:32]} 15. Qe2 {[%clk 0:02:08]}  g6 {[%clk 0:02:30]} 16. f4 {[%clk 0:01:17]}  e5 {[%clk 0:02:21]} 17. fxe5 {[%clk 0:01:08]}  dxe5 {[%clk 0:02:21]} 18. Nf3 {[%clk 0:01:07]}  Ng4 {[%clk 0:02:21]} 19. Kh1 {[%clk 0:01:05]}  Bh6 {[%clk 0:02:18]} 20. Nd1 {[%clk 0:01:01]}  Nc5 {[%clk 0:02:01]} 21. Nd2 {[%clk 0:00:56]}  Nxe3 {[%clk 0:01:58]} 22. Nxe3 {[%clk 0:00:57]}  Rad8 {[%clk 0:01:58]} 23. Bc4 {[%clk 0:00:49]}  Rxd2 {[%clk 0:01:18]} 24. Qxd2 {[%clk 0:00:48]}  Nxe4 {[%clk 0:01:19]} 25. Qe2 {[%clk 0:00:48]}  Nd6 {[%clk 0:01:16]} 26. Nd5 {[%clk 0:00:42]}  Qd8 {[%clk 0:01:03]} 27. Rf1 {[%clk 0:00:39]}  Nxc4 {[%clk 0:01:02]} 28. Nf6+ {[%clk 0:00:37]}  Kf8 {[%clk 0:00:51]} 29. Qxc4 {[%clk 0:00:31]}  Re6 {[%clk 0:00:45]} 30. Qh4 {[%clk 0:00:27]}  Qd2 {[%clk 0:00:30]} 31. Rg1 {[%clk 0:00:08]}  Kg7 {[%clk 0:00:18]} 32. Ng4 {[%clk 0:00:08]}  Bf4 {[%clk 0:00:17]} 33. Ba3 {[%clk 0:00:05]}  h5 {[%clk 0:00:14]} 34. Nf2 {[%clk 0:00:05]}  Be3 {[%clk 0:00:10]} 35. Rf1 {[%clk 0:00:04]}  Bg5 {[%clk 0:00:07]} 36. Qg3 {[%clk 0:00:04]}  Bf4 {[%clk 0:00:08]} 37. Qd3 {[%clk 0:00:03]}  Qxd3 {[%clk 0:00:04]} 38. Nxd3 {[%clk 0:00:04]}  Bg5 {[%clk 0:00:05]} 39. Re1 {[%clk 0:00:05]}  e4 {[%clk 0:00:04]} 40. Bb2+ {[%clk 0:00:05]}  Kh7 {[%clk 0:00:04]} 41. Nb4 {[%clk 0:00:04]}  f5 {[%clk 0:00:04]} 42. Rd1 {[%clk 0:00:04]}  Be7 {[%clk 0:00:05]} 43. Rd7 {[%clk 0:00:04]}  Kh6 {[%clk 0:00:04]} 44. Bc1+ {[%clk 0:00:03]}  e3 {[%clk 0:00:04]} 45. Nd3 {[%clk 0:00:03]}  Bc6 {[%clk 0:00:04]} 46. Ra7 {[%clk 0:00:02]}  g5 {[%clk 0:00:04]} 47. Kg1 {[%clk 0:00:01]}  e2 {[%clk 0:00:05]} 48. Kf2 {[%clk 0:00:02]}  Bc5+ {[%clk 0:00:04]} 49. Ke1 {[%clk 0:00:03]}  Bd4 {[%clk 0:00:04]} 50. Bd2 {[%clk 0:00:02]}  Bxg2 {[%clk 0:00:05]} 51. h4 {[%clk 0:00:03]}  f4 {[%clk 0:00:04]} 52. hxg5+ {[%clk 0:00:04]}  Kxg5 {[%clk 0:00:03]} 53. Nxf4 {[%clk 0:00:05]}  Bf2+ {[%clk 0:00:02]} 54. Kxf2 {[%clk 0:00:06]}  e1=Q+ {[%clk 0:00:03]} 55. Bxe1 {[%clk 0:00:06]}  Kxf4 {[%clk 0:00:04]} 56. Bd2+ {[%clk 0:00:07]}  Kg4 {[%clk 0:00:04]} 57. Rg7+ {[%clk 0:00:06]}  Kh3 {[%clk 0:00:04]} 58. Rxg2 {[%clk 0:00:07]}  Rf6+ {[%clk 0:00:04]} 59. Kg1 {[%clk 0:00:07]}  Rc6 {[%clk 0:00:05]} 60. Rh2+ {[%clk 0:00:08]}  Kg4 {[%clk 0:00:05]} 61. Be3 {[%clk 0:00:09]}  Kf3 {[%clk 0:00:06]} 62. Bd4 {[%clk 0:00:09]}  Rd6 {[%clk 0:00:06]} 63. c3 {[%clk 0:00:09]}  Kg4 {[%clk 0:00:05]} 64. Rg2+ {[%clk 0:00:09]}  Kf3 {[%clk 0:00:05]} 65. b4 {[%clk 0:00:09]}  Re6 {[%clk 0:00:05]} 66. Rf2+ {[%clk 0:00:10]}  Kg3 {[%clk 0:00:05]} 67. Rg2+ {[%clk 0:00:09]}  Kf3 {[%clk 0:00:06]} 68. Rg5 {[%clk 0:00:10]}  h4 {[%clk 0:00:05]} 69. Kh2 {[%clk 0:00:10]}  Ke2 {[%clk 0:00:04]} 70. Kh3 {[%clk 0:00:10]}  Kd3 {[%clk 0:00:05]} 71. Kxh4 {[%clk 0:00:10]}  Kc4 {[%clk 0:00:06]} 72. a5 {[%clk 0:00:10]}  bxa5 {[%clk 0:00:05]} 73. Rxa5 {[%clk 0:00:10]}  Rg6 {[%clk 0:00:05]} 74. Kh5 {[%clk 0:00:10]}  Re6 {[%clk 0:00:06]} 75. Kg5 {[%clk 0:00:10]}  Rc6 {[%clk 0:00:07]} 76. Rc5+ {[%clk 0:00:09]}  Rxc5+ {[%clk 0:00:07]} 77. bxc5 {[%clk 0:00:09]}  Kb5 {[%clk 0:00:06]} 78. Kf4 {[%clk 0:00:09]}  a5 {[%clk 0:00:07]} 79. Ke4 {[%clk 0:00:09]}  a4 {[%clk 0:00:07]} 80. c4+ {[%clk 0:00:09]}  Kc6 {[%clk 0:00:05]} 81. Kd3 {[%clk 0:00:10]}  a3 {[%clk 0:00:06]} 82. Kc2 {[%clk 0:00:10]}  a2 {[%clk 0:00:07]} 83. Kb2 {[%clk 0:00:10]} 1-0


[Site "https://www.chess.com"]

[Event "Titled Tuesday Blitz April 4 Late 2023"]
[White "Kravtsiv, Martyn"]
[Black "Sadhwani, Raunak"]
[WhiteFideId "14113147"]
[BlackFideId "35093487"]
[WhiteElo "2695"]
[BlackElo "2631"]
[Result "1-0"]
[Round "07"]
[TimeControl "180+2"]
[Date "2023.04.04"]
[WhiteClock "0:00:34"]
[BlackClock "0:00:02"]

1. e4 {[%clk 0:03:00]}  d6 {[%clk 0:02:59]} 2. d4 {[%clk 0:02:59]}  g6 {[%clk 0:03:00]} 3. Nc3 {[%clk 0:02:58]}  Bg7 {[%clk 0:03:00]} 4. f4 {[%clk 0:02:58]}  a6 {[%clk 0:02:53]} 5. Nf3 {[%clk 0:02:57]}  b5 {[%clk 0:02:53]} 6. Bd3 {[%clk 0:02:57]}  Bb7 {[%clk 0:02:54]} 7. e5 {[%clk 0:02:54]}  Nd7 {[%clk 0:02:53]} 8. a4 {[%clk 0:02:52]}  b4 {[%clk 0:02:51]} 9. Ne4 {[%clk 0:02:52]}  Nh6 {[%clk 0:02:50]} 10. O-O {[%clk 0:02:41]}  O-O {[%clk 0:02:50]} 11. c3 {[%clk 0:02:40]}  bxc3 {[%clk 0:02:38]} 12. bxc3 {[%clk 0:02:39]}  c5 {[%clk 0:02:38]} 13. Qe2 {[%clk 0:02:20]}  Qc7 {[%clk 0:02:30]} 14. e6 {[%clk 0:02:18]}  Nb6 {[%clk 0:02:22]} 15. Neg5 {[%clk 0:02:17]}  f6 {[%clk 0:02:05]} 16. Nxh7 {[%clk 0:02:04]}  Kxh7 {[%clk 0:02:06]} 17. f5 {[%clk 0:02:04]}  cxd4 {[%clk 0:00:53]} 18. fxg6+ {[%clk 0:01:59]}  Kg8 {[%clk 0:00:54]} 19. Nxd4 {[%clk 0:01:48]}  Qxc3 {[%clk 0:00:46]} 20. Bxh6 {[%clk 0:01:47]}  Qxd4+ {[%clk 0:00:28]} 21. Be3 {[%clk 0:01:46]}  Qh4 {[%clk 0:00:28]} 22. Bxb6 {[%clk 0:01:43]}  f5 {[%clk 0:00:28]} 23. Rab1 {[%clk 0:01:40]}  Be5 {[%clk 0:00:27]} 24. g3 {[%clk 0:00:57]}  Bxg3 {[%clk 0:00:27]} 25. Be3 {[%clk 0:00:49]}  Bd5 {[%clk 0:00:23]} 26. Bxf5 {[%clk 0:00:48]}  Rf6 {[%clk 0:00:11]} 27. Rbd1 {[%clk 0:00:38]}  Bb7 {[%clk 0:00:07]} 28. Rd4 {[%clk 0:00:36]}  Qh8 {[%clk 0:00:02]} 29. g7 {[%clk 0:00:34]} 1-0


[Site "https://www.chess.com"]

[Event "Titled Tuesday Blitz April 4 Late 2023"]
[White "Alekseenko, Kirill"]
[Black "Urazayev, Arystanbek"]
[WhiteFideId "4135539"]
[BlackFideId "13709810"]
[WhiteElo "2683"]
[BlackElo "2449"]
[Result "1-0"]
[Round "07"]
[TimeControl "180+2"]
[Date "2023.04.04"]
[WhiteClock "0:01:25"]
[BlackClock "0:00:42"]

1. d4 {[%clk 0:02:58]}  Nf6 {[%clk 0:02:59]} 2. Nc3 {[%clk 0:02:58]}  d5 {[%clk 0:02:59]} 3. Bf4 {[%clk 0:02:58]}  e6 {[%clk 0:02:59]} 4. Nb5 {[%clk 0:02:58]}  Bb4+ {[%clk 0:03:00]} 5. c3 {[%clk 0:02:58]}  Ba5 {[%clk 0:03:00]} 6. e3 {[%clk 0:02:58]}  a6 {[%clk 0:02:58]} 7. Na3 {[%clk 0:02:59]}  O-O {[%clk 0:02:58]} 8. Nf3 {[%clk 0:02:59]}  Qe7 {[%clk 0:02:58]} 9. Nb1 {[%clk 0:02:55]}  c6 {[%clk 0:02:50]} 10. Nbd2 {[%clk 0:02:53]}  Bc7 {[%clk 0:02:50]} 11. Bd3 {[%clk 0:02:50]}  c5 {[%clk 0:02:47]} 12. Bxc7 {[%clk 0:02:43]}  Qxc7 {[%clk 0:02:46]} 13. Ne5 {[%clk 0:02:44]}  Nfd7 {[%clk 0:02:32]} 14. f4 {[%clk 0:02:38]}  Nxe5 {[%clk 0:02:19]} 15. fxe5 {[%clk 0:02:37]}  f5 {[%clk 0:02:20]} 16. exf6 {[%clk 0:02:32]}  Rxf6 {[%clk 0:02:18]} 17. Qh5 {[%clk 0:02:25]}  g6 {[%clk 0:02:16]} 18. Qh4 {[%clk 0:02:18]}  Nd7 {[%clk 0:02:07]} 19. O-O-O {[%clk 0:02:12]}  cxd4 {[%clk 0:01:43]} 20. exd4 {[%clk 0:02:09]}  Qf4 {[%clk 0:01:27]} 21. g4 {[%clk 0:01:56]}  Qe3 {[%clk 0:01:23]} 22. Bc2 {[%clk 0:01:50]}  Qf2 {[%clk 0:01:11]} 23. Qh3 {[%clk 0:01:47]}  Qf4 {[%clk 0:01:02]} 24. Rdf1 {[%clk 0:01:41]}  Qg5 {[%clk 0:01:02]} 25. Qg3 {[%clk 0:01:41]}  Nf8 {[%clk 0:00:56]} 26. h4 {[%clk 0:01:39]}  Rxf1+ {[%clk 0:00:56]} 27. Rxf1 {[%clk 0:01:40]}  Qh6 {[%clk 0:00:52]} 28. g5 {[%clk 0:01:37]}  Qg7 {[%clk 0:00:52]} 29. Nf3 {[%clk 0:01:35]}  Bd7 {[%clk 0:00:47]} 30. Ne5 {[%clk 0:01:35]}  Be8 {[%clk 0:00:47]} 31. Ng4 {[%clk 0:01:33]}  Nd7 {[%clk 0:00:48]} 32. Qd6 {[%clk 0:01:28]}  Nf8 {[%clk 0:00:42]} 33. Nh6+ {[%clk 0:01:25]} 1-0


[Site "https://www.chess.com"]

[Event "Titled Tuesday Blitz April 4 Late 2023"]
[White "Holt, Conrad"]
[Black "Zakhartsov, Vladimir"]
[WhiteFideId "2034387"]
[BlackFideId "4145097"]
[WhiteElo "2592"]
[BlackElo "2497"]
[Result "1-0"]
[Round "07"]
[TimeControl "180+2"]
[Date "2023.04.04"]
[WhiteClock "0:01:23"]
[BlackClock "0:00:08"]

1. d4 {[%clk 0:03:00]}  Nf6 {[%clk 0:02:59]} 2. c4 {[%clk 0:03:01]}  e6 {[%clk 0:02:59]} 3. Nc3 {[%clk 0:03:01]}  Bb4 {[%clk 0:02:58]} 4. Qc2 {[%clk 0:03:02]}  d5 {[%clk 0:02:57]} 5. cxd5 {[%clk 0:03:02]}  exd5 {[%clk 0:02:56]} 6. Bg5 {[%clk 0:03:01]}  h6 {[%clk 0:02:49]} 7. Bxf6 {[%clk 0:02:59]}  Qxf6 {[%clk 0:02:50]} 8. a3 {[%clk 0:02:59]}  Bxc3+ {[%clk 0:02:47]} 9. Qxc3 {[%clk 0:03:00]}  c6 {[%clk 0:02:47]} 10. e3 {[%clk 0:03:00]}  O-O {[%clk 0:02:47]} 11. Ne2 {[%clk 0:03:00]}  Bf5 {[%clk 0:02:45]} 12. Ng3 {[%clk 0:03:00]}  Bh7 {[%clk 0:02:45]} 13. Be2 {[%clk 0:03:00]}  Nd7 {[%clk 0:02:45]} 14. O-O {[%clk 0:03:00]}  Qe7 {[%clk 0:02:44]} 15. b4 {[%clk 0:02:59]}  Rac8 {[%clk 0:02:40]} 16. a4 {[%clk 0:02:58]}  f5 {[%clk 0:02:38]} 17. Nh5 {[%clk 0:02:53]}  f4 {[%clk 0:02:38]} 18. Bg4 {[%clk 0:02:50]}  fxe3 {[%clk 0:02:34]} 19. Qxe3 {[%clk 0:02:49]}  Rce8 {[%clk 0:02:21]} 20. Qxe7 {[%clk 0:02:18]}  Rxe7 {[%clk 0:02:21]} 21. Rfe1 {[%clk 0:02:18]}  Rfe8 {[%clk 0:02:18]} 22. Rxe7 {[%clk 0:02:13]}  Rxe7 {[%clk 0:02:19]} 23. Bxd7 {[%clk 0:02:10]}  Rxd7 {[%clk 0:02:20]} 24. Re1 {[%clk 0:02:10]}  Kf7 {[%clk 0:02:15]} 25. f4 {[%clk 0:01:58]}  b6 {[%clk 0:02:11]} 26. Kf2 {[%clk 0:01:57]}  Bc2 {[%clk 0:02:01]} 27. a5 {[%clk 0:01:56]}  bxa5 {[%clk 0:02:01]} 28. bxa5 {[%clk 0:01:56]}  Rb7 {[%clk 0:02:02]} 29. Rc1 {[%clk 0:01:48]}  Rb2 {[%clk 0:01:59]} 30. Ng3 {[%clk 0:01:40]}  Ke6 {[%clk 0:01:49]} 31. Re1+ {[%clk 0:01:32]}  Kd7 {[%clk 0:01:46]} 32. Re2 {[%clk 0:01:32]}  c5 {[%clk 0:01:35]} 33. Nf5 {[%clk 0:01:22]}  g6 {[%clk 0:00:13]} 34. Ne7 {[%clk 0:01:22]}  cxd4 {[%clk 0:00:11]} 35. Nxg6 {[%clk 0:01:23]}  d3 {[%clk 0:00:08]} 36. Ne5+ {[%clk 0:01:23]} 1-0


[Site "https://www.chess.com"]

[Event "Titled Tuesday Blitz April 4 Late 2023"]
[White "Svane, Rasmus"]
[Black "Timofeev, Artyom"]
[WhiteFideId "4657101"]
[BlackFideId "4140419"]
[WhiteElo "2597"]
[BlackElo "2586"]
[Result "1-0"]
[Round "07"]
[TimeControl "180+2"]
[Date "2023.04.04"]
[WhiteClock "0:01:06"]
[BlackClock "0:00:02"]

1. Nf3 {[%clk 0:02:57]}  c5 {[%clk 0:02:59]} 2. c4 {[%clk 0:02:57]}  Nf6 {[%clk 0:02:59]} 3. Nc3 {[%clk 0:02:57]}  d5 {[%clk 0:02:58]} 4. cxd5 {[%clk 0:02:58]}  Nxd5 {[%clk 0:02:58]} 5. e3 {[%clk 0:02:58]}  e6 {[%clk 0:02:55]} 6. Nxd5 {[%clk 0:02:41]}  exd5 {[%clk 0:02:49]} 7. Be2 {[%clk 0:02:40]}  Nc6 {[%clk 0:02:48]} 8. d4 {[%clk 0:02:39]}  Be6 {[%clk 0:02:18]} 9. O-O {[%clk 0:02:38]}  Rc8 {[%clk 0:02:17]} 10. b3 {[%clk 0:02:37]}  Be7 {[%clk 0:02:04]} 11. dxc5 {[%clk 0:02:37]}  Bxc5 {[%clk 0:02:04]} 12. Bb2 {[%clk 0:02:38]}  O-O {[%clk 0:02:04]} 13. Rc1 {[%clk 0:02:37]}  Qe7 {[%clk 0:02:01]} 14. Qd3 {[%clk 0:02:24]}  Bb6 {[%clk 0:01:42]} 15. Rfd1 {[%clk 0:02:22]}  h6 {[%clk 0:01:40]} 16. h3 {[%clk 0:02:19]}  a6 {[%clk 0:01:26]} 17. Qb1 {[%clk 0:02:19]}  Rfd8 {[%clk 0:01:23]} 18. Bd3 {[%clk 0:02:18]}  Nb4 {[%clk 0:01:13]} 19. Bh7+ {[%clk 0:02:14]}  Kh8 {[%clk 0:01:07]} 20. Rxc8 {[%clk 0:02:15]}  Rxc8 {[%clk 0:01:05]} 21. Bf5 {[%clk 0:02:15]}  Kg8 {[%clk 0:00:58]} 22. a3 {[%clk 0:02:14]}  Nc6 {[%clk 0:00:57]} 23. b4 {[%clk 0:02:13]}  Rd8 {[%clk 0:00:56]} 24. Bh7+ {[%clk 0:02:13]}  Kh8 {[%clk 0:00:55]} 25. Bf5 {[%clk 0:02:11]}  Kg8 {[%clk 0:00:54]} 26. Bc3 {[%clk 0:01:51]}  Rc8 {[%clk 0:00:49]} 27. Ba1 {[%clk 0:01:49]}  Rd8 {[%clk 0:00:49]} 28. Qb2 {[%clk 0:01:44]}  Qf8 {[%clk 0:00:48]} 29. Qc2 {[%clk 0:01:39]}  Qe7 {[%clk 0:00:47]} 30. Bd3 {[%clk 0:01:36]}  Rc8 {[%clk 0:00:46]} 31. Qb2 {[%clk 0:01:36]}  Qf8 {[%clk 0:00:46]} 32. b5 {[%clk 0:01:35]}  axb5 {[%clk 0:00:42]} 33. Bxb5 {[%clk 0:01:35]}  Bc5 {[%clk 0:00:40]} 34. a4 {[%clk 0:01:36]}  Be7 {[%clk 0:00:37]} 35. Bd3 {[%clk 0:01:35]}  Rb8 {[%clk 0:00:24]} 36. Bb1 {[%clk 0:01:35]}  Bf6 {[%clk 0:00:24]} 37. Qc2 {[%clk 0:01:34]}  Qd8 {[%clk 0:00:07]} 38. Qh7+ {[%clk 0:01:14]}  Kf8 {[%clk 0:00:07]} 39. Qh8+ {[%clk 0:01:15]}  Ke7 {[%clk 0:00:07]} 40. Bxf6+ {[%clk 0:01:16]}  Kxf6 {[%clk 0:00:07]} 41. Qh7 {[%clk 0:01:17]}  Qb6 {[%clk 0:00:07]} 42. Nd4 {[%clk 0:01:10]}  Nxd4 {[%clk 0:00:04]} 43. Rxd4 {[%clk 0:01:11]}  Rc8 {[%clk 0:00:03]} 44. Bd3 {[%clk 0:01:08]}  Rc1+ {[%clk 0:00:02]} 45. Kh2 {[%clk 0:01:08]}  Qc7+ {[%clk 0:00:02]} 46. Rf4+ {[%clk 0:01:08]}  Ke7 {[%clk 0:00:02]} 47. Qxg7 {[%clk 0:01:08]}  Qd6 {[%clk 0:00:02]} 48. Qxh6 {[%clk 0:01:06]}  d4 {[%clk 0:00:02]} 49. Qf6+ {[%clk 0:01:06]}  Kd7 {[%clk 0:00:02]} 50. Qxd4 {[%clk 0:01:06]} 1-0


[Site "https://www.chess.com"]

[Event "Titled Tuesday Blitz April 4 Late 2023"]
[White "Xiong, Jeffery"]
[Black "Szpar, Milosz"]
[WhiteFideId "2047640"]
[BlackFideId "1184989"]
[WhiteElo "2726"]
[BlackElo "2436"]
[Result "1-0"]
[Round "07"]
[TimeControl "180+2"]
[Date "2023.04.04"]
[WhiteClock "0:00:25"]
[BlackClock "0:00:01"]

1. e4 {[%clk 0:03:00]}  e6 {[%clk 0:02:58]} 2. d4 {[%clk 0:03:01]}  d5 {[%clk 0:02:58]} 3. e5 {[%clk 0:03:01]}  c5 {[%clk 0:02:57]} 4. c3 {[%clk 0:03:02]}  Nc6 {[%clk 0:02:56]} 5. Nf3 {[%clk 0:03:02]}  Bd7 {[%clk 0:02:54]} 6. Be2 {[%clk 0:03:00]}  Nge7 {[%clk 0:02:53]} 7. Na3 {[%clk 0:03:00]}  cxd4 {[%clk 0:02:53]} 8. cxd4 {[%clk 0:03:01]}  Nf5 {[%clk 0:02:53]} 9. Nc2 {[%clk 0:03:02]}  Rc8 {[%clk 0:02:37]} 10. O-O {[%clk 0:03:02]}  a6 {[%clk 0:02:37]} 11. Bd3 {[%clk 0:03:01]}  Be7 {[%clk 0:02:35]} 12. a3 {[%clk 0:02:57]}  b5 {[%clk 0:02:33]} 13. Bxf5 {[%clk 0:02:51]}  exf5 {[%clk 0:02:34]} 14. Qd3 {[%clk 0:02:52]}  Be6 {[%clk 0:02:28]} 15. Bd2 {[%clk 0:02:40]}  g5 {[%clk 0:02:25]} 16. Rfc1 {[%clk 0:02:35]}  f4 {[%clk 0:02:12]} 17. Nfe1 {[%clk 0:02:36]}  Qd7 {[%clk 0:02:08]} 18. Qe2 {[%clk 0:02:36]}  h5 {[%clk 0:01:56]} 19. Nd3 {[%clk 0:02:36]}  h4 {[%clk 0:01:57]} 20. h3 {[%clk 0:02:22]}  Rg8 {[%clk 0:01:19]} 21. f3 {[%clk 0:02:22]}  Bf5 {[%clk 0:01:20]} 22. Bb4 {[%clk 0:02:03]}  Bxd3 {[%clk 0:00:55]} 23. Qxd3 {[%clk 0:02:04]}  Nd8 {[%clk 0:00:51]} 24. Bxe7 {[%clk 0:02:01]}  Kxe7 {[%clk 0:00:49]} 25. Nb4 {[%clk 0:02:01]}  Ne6 {[%clk 0:00:44]} 26. Nxa6 {[%clk 0:02:00]}  Qa7 {[%clk 0:00:44]} 27. Nb4 {[%clk 0:01:18]}  Qxd4+ {[%clk 0:00:44]} 28. Kf1 {[%clk 0:01:08]}  Qxd3+ {[%clk 0:00:38]} 29. Nxd3 {[%clk 0:01:09]}  Nd4 {[%clk 0:00:31]} 30. Rxc8 {[%clk 0:01:01]}  Rxc8 {[%clk 0:00:31]} 31. Rd1 {[%clk 0:01:01]}  Nf5 {[%clk 0:00:31]} 32. Rd2 {[%clk 0:01:01]}  Ne3+ {[%clk 0:00:31]} 33. Ke2 {[%clk 0:01:01]}  Ke6 {[%clk 0:00:27]} 34. Kf2 {[%clk 0:01:01]}  d4 {[%clk 0:00:22]} 35. Ke1 {[%clk 0:00:58]}  Kd5 {[%clk 0:00:20]} 36. Kf2 {[%clk 0:00:59]}  Kc4 {[%clk 0:00:19]} 37. Nb4 {[%clk 0:00:56]}  Re8 {[%clk 0:00:16]} 38. Re2 {[%clk 0:00:53]}  Rxe5 {[%clk 0:00:12]} 39. Re1 {[%clk 0:00:53]}  Kb3 {[%clk 0:00:11]} 40. Nd3 {[%clk 0:00:54]}  Re7 {[%clk 0:00:11]} 41. Rc1 {[%clk 0:00:54]}  Nc4 {[%clk 0:00:09]} 42. Nc5+ {[%clk 0:00:47]}  Kxb2 {[%clk 0:00:09]} 43. Rd1 {[%clk 0:00:48]}  Kxa3 {[%clk 0:00:08]} 44. Rxd4 {[%clk 0:00:48]}  Kb4 {[%clk 0:00:07]} 45. Ne4 {[%clk 0:00:49]}  Ra7 {[%clk 0:00:07]} 46. Nxg5 {[%clk 0:00:49]}  Kc3 {[%clk 0:00:07]} 47. Rxf4 {[%clk 0:00:44]}  Ra2+ {[%clk 0:00:08]} 48. Kg1 {[%clk 0:00:44]}  Ne3 {[%clk 0:00:08]} 49. Ne4+ {[%clk 0:00:41]}  Kd3 {[%clk 0:00:07]} 50. Rxh4 {[%clk 0:00:42]}  Rxg2+ {[%clk 0:00:06]} 51. Kh1 {[%clk 0:00:43]}  Rc2 {[%clk 0:00:06]} 52. Nd6 {[%clk 0:00:36]}  Ke2 {[%clk 0:00:06]} 53. Rf4 {[%clk 0:00:26]}  Rc1+ {[%clk 0:00:03]} 54. Kh2 {[%clk 0:00:26]}  Nf1+ {[%clk 0:00:03]} 55. Kg2 {[%clk 0:00:26]}  Ne3+ {[%clk 0:00:04]} 56. Kg3 {[%clk 0:00:27]}  Rg1+ {[%clk 0:00:04]} 57. Kh2 {[%clk 0:00:27]}  Rb1 {[%clk 0:00:04]} 58. Rxf7 {[%clk 0:00:25]}  b4 {[%clk 0:00:04]} 59. Ne4 {[%clk 0:00:25]}  Rb2 {[%clk 0:00:03]} 60. Kg3 {[%clk 0:00:25]}  Rb1 {[%clk 0:00:03]} 61. Kf4 {[%clk 0:00:25]}  Ng2+ {[%clk 0:00:01]} 62. Ke5 {[%clk 0:00:25]} 1-0


[Site "https://www.chess.com"]